fUST/lending_fUST_20260619
["ID","MTS","AMOUNT","RATE_DAILY","PERIOD"]
[425551650,1781808646000,-580.29,0.00016438,2]
[425551666,1781808646000,-234.91763407,0.00018356,2]
[425551674,1781808646000,-500.0,0.00018599,2]
[425551665,1781808646000,-4851.96037647,0.0001816,2]
[425551663,1781808646000,-500.0,0.00017808,2]
[425551664,1781808646000,-500.0,0.00018082,2]
[425551662,1781808646000,-500.0,0.00017534,2]
[425551649,1781808646000,-412.97,0.00016438,2]
[425551653,1781808646000,-500.0,0.00016712,2]
[425551661,1781808646000,-500.0,0.00017533,2]
[425551658,1781808646000,-500.0,0.00016986,2]
[425551651,1781808646000,-500.0,0.00016438,2]
[425551655,1781808646000,-600.0,0.00016766,2]
[425551673,1781808646000,-500.0,0.00018599,2]
[425551648,1781808646000,-500.0,0.00016438,2]
[425551679,1781808647000,-500.0,0.00018599,2]
[425551685,1781808647000,-160.0,0.00018615,2]
[425551678,1781808647000,-165.26207714,0.00018599,2]
[425551676,1781808647000,-500.0,0.00018599,2]
[425551681,1781808647000,-300.0,0.00018599,2]
[425551686,1781808647000,-160.0,0.00018615,2]
[425551687,1781808647000,-3536.94293252,0.000188,2]
[425551688,1781808647000,-158.926,0.00018952,2]
[425551677,1781808647000,-500.0,0.00018599,2]
[425551680,1781808647000,-500.0,0.00018599,2]
[425551683,1781808647000,-160.0,0.00018615,2]
[425551684,1781808647000,-160.0,0.00018615,2]
[425551695,1781808647000,-4851.96037647,0.00019438,2]
[425551694,1781808647000,-3536.94293252,0.000194,2]
[425551696,1781808647000,-2729.8388616,0.000196,2]
[425551690,1781808647000,-3536.94293252,0.00019,2]
[425551692,1781808647000,-2017.52486207,0.00019268,2]
[425551691,1781808647000,-3536.94293252,0.000192,2]
[425551689,1781808647000,-500.0,0.00018999,2]
[425551682,1781808647000,-3536.94293252,0.000186,2]
[425551693,1781808647000,-365.29557417,0.00019268,2]
[425556373,1781809053000,1000.0,7.6e-05,2]
[425556374,1781809053000,1000.0,7.6e-05,2]
[425556375,1781809053000,12015.68892349,7.6e-05,2]
[425556372,1781809053000,1000.0,7.6e-05,2]
[425556371,1781809053000,1000.0,7.6e-05,2]
[425556370,1781809053000,1000.0,7.6e-05,2]
[425556369,1781809053000,10000.0,7.6e-05,2]
[425556414,1781809756000,-1359.79100373,9.411e-05,2]
[425556417,1781809756000,-300.0,9.999e-05,2]
[425556416,1781809756000,-300.0,9.999e-05,2]
[425556415,1781809756000,-151.0,9.602e-05,2]
[425556419,1781809784000,-9890.20899627,0.0001,2]
[425556426,1781809832000,-2838.48268506,0.000115,2]
[425556425,1781809832000,-378.09064194,0.0001,2]
[425556442,1781809838000,-197.0,0.00013172,2]
[425556436,1781809838000,-252.42,0.000115,2]
[425556437,1781809838000,-1597.09922814,0.000115,2]
[425556438,1781809838000,-300.0,0.00011999,2]
[425556439,1781809838000,-300.0,0.00011999,2]
[425556440,1781809838000,-4046.96179709,0.00012,2]
[425556441,1781809838000,-168.2171638,0.0001315,7]
[425556444,1781809838000,-285.109449,0.00013699,2]
[425556445,1781809838000,-491.6719573,0.00013699,2]
[425556443,1781809838000,-277.4671013,0.00013385,2]
[425556435,1781809838000,-638.47524953,0.000115,2]
[425556447,1781809838000,-220.24342299,0.00013923,2]
[425556446,1781809838000,-500.0,0.00013923,2]
[425556456,1781809838000,-500.0,0.00016897,2]
[425556455,1781809838000,-152.0,0.00016463,2]
[425556450,1781809838000,-252.32574571,0.00013923,7]
[425556454,1781809838000,-152.0,0.00016322,7]
[425556449,1781809838000,-491.06,0.00013923,2]
[425556451,1781809838000,-520.8452386,0.00014372,2]
[425556452,1781809838000,-3749.425392,0.00016,2]
[425556453,1781809838000,-152.0,0.00016322,7]
[425556448,1781809838000,-296.56380657,0.00013923,2]
[425556489,1781809839000,-1004.0,0.00019806,2]
[425556482,1781809839000,-340.60848045,0.00019038,2]
[425556483,1781809839000,-2066.77880556,0.000192,2]
[425556479,1781809839000,-2066.77880556,0.00019,2]
[425556481,1781809839000,-639.72922953,0.00019038,2]
[425556484,1781809839000,-2066.77880556,0.000194,2]
[425556486,1781809839000,-2066.77880556,0.000196,2]
[425556490,1781809839000,-1004.0,0.00019806,2]
[425556485,1781809839000,-160.0,0.00019403,2]
[425556492,1781809839000,-2066.77880556,0.000199,2]
[425556487,1781809839000,-2066.77880556,0.000197,2]
[425556491,1781809839000,-1004.0,0.00019806,2]
[425556493,1781809839000,-1418.0,0.000199,2]
[425556480,1781809839000,-444.70111051,0.00019038,2]
[425556494,1781809839000,-186.0,0.000199,2]
[425556495,1781809839000,-445.0,0.000199,2]
[425556496,1781809839000,-727.30139802,0.00019967,2]
[425556498,1781809839000,-208.74988513,0.0002,2]
[425556497,1781809839000,-1046.26669914,0.00019967,2]
[425556488,1781809839000,-1004.0,0.00019806,2]
[425556477,1781809839000,-158.926,0.00018943,2]
[425556472,1781809839000,-160.0,0.000186,2]
[425556478,1781809839000,-489.98573563,0.00018968,2]
[425556499,1781809839000,-2066.77880556,0.000201,2]
[425556457,1781809839000,-200.18766961,0.00016897,2]
[425556458,1781809839000,-271.87,0.00016907,2]
[425556461,1781809839000,-525.68345399,0.00016999,2]
[425556459,1781809839000,-273.8709773,0.00016999,2]
[425556463,1781809839000,-500.0,0.00016999,2]
[425556460,1781809839000,-500.0,0.00016999,2]
[425556464,1781809839000,-500.0,0.00016999,2]
[425556462,1781809839000,-500.0,0.00016999,2]
[425556465,1781809839000,-500.0,0.00016999,2]
[425556467,1781809839000,-103485.00708434,0.00017,2]
[425556466,1781809839000,-500.0,0.00016999,2]
[425556468,1781809839000,-200.0,0.00017,2]
[425556471,1781809839000,-3400.7950458,0.00018165,2]
[425556470,1781809839000,-201.22967529,0.00018,2]
[425556469,1781809839000,-2172.97259553,0.000176,2]
[425556473,1781809839000,-160.0,0.000186,2]
[425556474,1781809839000,-160.0,0.000186,2]
[425556476,1781809839000,-2066.77880556,0.000188,2]
[425556475,1781809839000,-2066.77880556,0.000186,2]
[425556500,1781809839000,-4413.08045186,0.000202,2]
[425556528,1781809839000,-548.03748833,0.00021017,2]
[425556503,1781809839000,-2308.807433,0.00020257,2]
[425556526,1781809839000,-350.74399253,0.00021017,2]
[425556546,1781809839000,-2214.41766342,0.0002115,2]
[425556530,1781809839000,-3000.0,0.0002103,2]
[425556529,1781809839000,-3000.0,0.0002102,2]
[425556533,1781809839000,-192.46351297,0.00021059,2]
[425556532,1781809839000,-3000.0,0.0002105,2]
[425556531,1781809839000,-3000.0,0.0002104,2]
[425556534,1781809839000,-3000.0,0.0002106,2]
[425556536,1781809839000,-3000.0,0.0002107,2]
[425556535,1781809839000,-294.61498287,0.00021069,2]
[425556537,1781809839000,-3000.0,0.0002108,2]
[425556539,1781809839000,-3000.0,0.000211,2]
[425556540,1781809839000,-684.83653515,0.0002111,2]
[425556542,1781809839000,-151.0,0.0002111,2]
[425556541,1781809839000,-2315.16346485,0.0002111,2]
[425556543,1781809839000,-3000.0,0.0002112,2]
[425556545,1781809839000,-3000.0,0.0002114,2]
[425556544,1781809839000,-3000.0,0.0002113,2]
[425556501,1781809839000,-441.297756,0.00020238,2]
[425556525,1781809839000,-306.90099347,0.00021017,2]
[425556527,1781809839000,-168.40557384,0.00021017,2]
[425556538,1781809839000,-3000.0,0.0002109,2]
[425556523,1781809839000,-600.0,0.00021007,2]
[425556524,1781809839000,-3000.0,0.0002101,2]
[425556504,1781809839000,-4457.614867,0.00020257,2]
[425556505,1781809839000,-160.0,0.00020267,2]
[425556506,1781809839000,-248.66103,0.00020267,2]
[425556508,1781809839000,-2066.77880556,0.000203,2]
[425556509,1781809839000,-598.2980858,0.00020568,2]
[425556511,1781809839000,-417.15472785,0.00020596,3]
[425556502,1781809839000,-160.0,0.00020257,2]
[425556510,1781809839000,-38000.0,0.00020596,3]
[425556513,1781809839000,-204.95,0.00020646,3]
[425556507,1781809839000,-337.32206,0.00020267,2]
[425556516,1781809839000,-160.0,0.00020764,3]
[425556517,1781809839000,-237.554223,0.00020845,2]
[425556512,1781809839000,-5649.76068508,0.00020596,3]
[425556514,1781809839000,-1004.0,0.00020663,2]
[425556518,1781809839000,-198.928825,0.00020854,2]
[425556519,1781809839000,-193.970799,0.00020894,2]
[425556520,1781809839000,-161.10264073,0.00020998,2]
[425556521,1781809839000,-1409.00767447,0.00021,2]
[425556515,1781809839000,-1004.0,0.00020663,2]
[425556522,1781809839000,-1590.99232553,0.00021,2]
[425556567,1781809843000,-260.0,0.00021184,2]
[425556569,1781809843000,-250.0,0.00021184,2]
[425556568,1781809843000,-250.0,0.00021184,2]
[425556570,1781809843000,-3000.0,0.0002119,2]
[425556565,1781809843000,-3000.0,0.0002117,2]
[425556564,1781809843000,-3000.0,0.0002116,2]
[425556566,1781809843000,-3000.0,0.0002118,2]
[425556562,1781809843000,-785.58233658,0.0002115,2]
[425556571,1781809843000,-380.0,0.000212,2]
[425556563,1781809843000,-410.0,0.00021154,2]
[425556573,1781809843000,-310.0,0.000212,2]
[425556580,1781809843000,-3000.0,0.0002125,2]
[425556575,1781809843000,-3000.0,0.000212,2]
[425556584,1781809843000,-2617.18447001,0.0002127,2]
[425556574,1781809843000,-280.0,0.000212,2]
[425556583,1781809843000,-3000.0,0.0002127,2]
[425556582,1781809843000,-3000.0,0.0002126,2]
[425556581,1781809843000,-176.519102,0.0002125,2]
[425556577,1781809843000,-3000.0,0.0002122,2]
[425556572,1781809843000,-340.0,0.000212,2]
[425556576,1781809843000,-3000.0,0.0002121,2]
[425556578,1781809843000,-3000.0,0.0002123,2]
[425556579,1781809843000,-3000.0,0.0002124,2]
[425556585,1781809844000,-153.38444999,0.0002127,2]
[425556586,1781809844000,-173.17432298,0.0002128,2]
[425556597,1781809846000,-3000.0,0.0002131,2]
[425556592,1781809846000,-2826.82567702,0.0002128,2]
[425556595,1781809846000,-3000.0,0.0002129,2]
[425556596,1781809846000,-3000.0,0.000213,2]
[425556593,1781809846000,-298.393236,0.0002128,2]
[425556598,1781809846000,-151.0,0.0002131,2]
[425556601,1781809846000,-151.0,0.0002132,2]
[425556602,1781809846000,-3000.0,0.0002133,2]
[425556594,1781809846000,-446.6014866,0.00021285,2]
[425556599,1781809846000,-3000.0,0.0002132,2]
[425556603,1781809846000,-946.93696498,0.0002134,2]
[425561550,1781811035000,-98.28303372,0.00016338,7]
[425561549,1781811035000,-53.71696628,0.00016338,7]
[425561552,1781811035000,-1336.74919593,0.00019041,2]
[425561551,1781811035000,-169.3156154,0.00018543,2]
[425561548,1781811035000,-152.0,0.00016338,7]
[425561546,1781811035000,-151.0,9.585e-05,2]
[425561547,1781811035000,-327.93382021,9.882e-05,7]
[425561636,1781811041000,-558.23858667,0.000211,2]
[425561630,1781811041000,-1004.0,0.00020705,2]
[425561638,1781811041000,-500.0,0.000211,2]
[425561632,1781811041000,-199.24,0.00020788,2]
[425561635,1781811041000,-500.0,0.000211,2]
[425561626,1781811041000,-445.0,0.00020038,2]
[425561621,1781811041000,-168.82297,0.00019159,2]
[425561624,1781811041000,-285.10945,0.00019512,2]
[425561623,1781811041000,-7506.7899511,0.00019175,2]
[425561622,1781811041000,-461.21,0.00019174,2]
[425561634,1781811041000,-191.70968411,0.000211,2]
[425561618,1781811041000,-152.0,0.00015323,7]
[425561625,1781811041000,-186.0,0.00020038,2]
[425561628,1781811041000,-788.38480922,0.0002014,2]
[425561620,1781811041000,-317.54018297,0.00019041,2]
[425561631,1781811041000,-384.40599227,0.00020705,2]
[425561633,1781811041000,-500.0,0.000211,2]
[425561647,1781811041000,-432.60986127,0.000212,2]
[425561650,1781811041000,-679.79329444,0.00021201,2]
[425561641,1781811041000,-200.0,0.00021184,2]
[425561645,1781811041000,-300.72423901,0.000212,2]
[425561649,1781811041000,-109026.12576275,0.00021201,2]
[425561642,1781811041000,-190.0,0.00021184,2]
[425561646,1781811041000,-244.95590829,0.000212,2]
[425561643,1781811041000,-180.0,0.00021184,2]
[425561644,1781811041000,-190.0,0.00021184,2]
[425561640,1781811041000,-6445.93638661,0.00021101,2]
[425561639,1781811041000,-105433.21064763,0.00021101,2]
[425561637,1781811041000,-500.0,0.000211,2]
[425561648,1781811041000,-166.444,0.00021201,2]
[425561659,1781811043000,-4005.48424801,0.00021201,2]
[425561677,1781811047000,-545.63529608,0.00021201,2]
[425561903,1781811965000,1000.0,0.00024658,120]
[425561975,1781812232000,-215.5368244,0.00020078,3]
[425561968,1781812232000,-152.0,0.00015324,7]
[425561970,1781812232000,-215.53682442,0.00019567,3]
[425561971,1781812232000,-185.415433,0.00019667,2]
[425561977,1781812232000,-186.0,0.00020178,2]
[425561973,1781812232000,-215.5368244,0.00019823,3]
[425561980,1781812232000,-160.0,0.00020634,2]
[425561982,1781812232000,-326.8661211,0.00020635,2]
[425561978,1781812232000,-250.0,0.00020248,2]
[425561984,1781812232000,-894.11607909,0.00020901,2]
[425561986,1781812232000,-1983.63344574,0.00020901,2]
[425561989,1781812232000,-447.14637119,0.00020901,2]
[425562086,1781812238000,-500.0,0.00021,2]
[425562078,1781812238000,-500.0,0.00021,2]
[425562080,1781812238000,-500.0,0.00021,2]
[425562089,1781812238000,-500.0,0.00021,2]
[425562091,1781812238000,-500.0,0.00021,2]
[425562075,1781812238000,-468.53543849,0.00021,2]
[425562095,1781812238000,-500.0,0.00021,2]
[425562097,1781812238000,-500.0,0.00021,2]
[425562099,1781812238000,-500.0,0.00021,2]
[425562093,1781812238000,-500.0,0.00021,2]
[425562084,1781812238000,-500.0,0.00021,2]
[425562082,1781812238000,-500.0,0.00021,2]
[425562077,1781812238000,-155.70526643,0.00021,2]
[425562073,1781812238000,-500.0,0.00021,2]
[425562071,1781812238000,-290.76701067,0.00021,2]
[425562105,1781812238000,-500.0,0.00021,2]
[425562068,1781812238000,-500.0,0.00021,2]
[425562070,1781812238000,-500.0,0.00021,2]
[425562066,1781812238000,-256.641218,0.00021,2]
[425562064,1781812238000,-500.0,0.00021,2]
[425562060,1781812238000,-152.0,0.00015808,7]
[425562062,1781812238000,-864.30087009,0.00020901,2]
[425562088,1781812238000,-500.0,0.00021,2]
[425562101,1781812238000,-500.0,0.00021,2]
[425562129,1781812238000,-500.0,0.00021001,2]
[425562107,1781812238000,-500.0,0.00021,2]
[425562152,1781812238000,-2318.91020796,0.00021001,2]
[425562150,1781812238000,-19175.4300316,0.00021001,2]
[425562148,1781812238000,-5397.96765249,0.00021001,2]
[425562146,1781812238000,-1583.28408659,0.00021001,2]
[425562144,1781812238000,-16865.48147043,0.00021001,2]
[425562122,1781812238000,-500.0,0.00021001,2]
[425562124,1781812238000,-500.0,0.00021001,2]
[425562140,1781812238000,-500.0,0.00021001,2]
[425562127,1781812238000,-500.0,0.00021001,2]
[425562126,1781812238000,-500.0,0.00021001,2]
[425562137,1781812238000,-500.0,0.00021001,2]
[425562142,1781812238000,-500.0,0.00021001,2]
[425562131,1781812238000,-500.0,0.00021001,2]
[425562138,1781812238000,-500.0,0.00021001,2]
[425562109,1781812238000,-533.73527951,0.00021,2]
[425562110,1781812238000,-500.0,0.00021,2]
[425562103,1781812238000,-500.0,0.00021,2]
[425562115,1781812238000,-166.444,0.00021001,2]
[425562112,1781812238000,-500.0,0.00021,2]
[425562117,1781812238000,-500.0,0.00021001,2]
[425562118,1781812238000,-500.0,0.00021001,2]
[425562133,1781812238000,-500.0,0.00021001,2]
[425562135,1781812238000,-500.0,0.00021001,2]
[425562120,1781812238000,-500.0,0.00021001,2]
[425562357,1781812240000,-12798.4653392,0.00021001,2]
[425562350,1781812240000,-1309.81679593,0.00021001,2]
[425562648,1781812243000,-9376.999065,0.00021001,2]
[425562640,1781812243000,-830.92525342,0.00021001,2]
[425562979,1781812245000,-4084.33087948,0.00021001,2]
[425562977,1781812245000,-501.0,0.00021001,2]
[425563017,1781812246000,-37995.9576577,0.00021001,2]
[425563015,1781812246000,-41217.17681791,0.00021001,2]
[425563006,1781812246000,-124114.12450514,0.00021001,2]
[425563012,1781812246000,-31401.09665546,0.00021001,2]
[425563004,1781812246000,-2461.38801218,0.00021001,2]
[425562984,1781812246000,-569.37999998,0.00021001,2]
[425564922,1781812654000,18640.34364265,7.6e-05,2]
[425564929,1781812664000,767.34966025,8.6e-05,2]
[425564930,1781812678000,200.0,0.00024658,120]
[425564934,1781812837000,2834.64273696,0.00010111,13]
[425564935,1781812852000,433.45811007,0.00010111,13]
[425564959,1781813432000,-32.5699982,0.0001,2]
[425564957,1781813432000,-316.79689611,9.703e-05,2]
[425565150,1781813440000,-500.0,0.00020596,2]
[425565152,1781813440000,-500.0,0.00020596,2]
[425565153,1781813440000,-500.0,0.00020596,2]
[425565165,1781813440000,-500.0,0.00020596,2]
[425565167,1781813440000,-500.0,0.00020596,2]
[425565155,1781813440000,-500.0,0.00020596,2]
[425565172,1781813440000,-500.0,0.00020596,2]
[425565171,1781813440000,-500.0,0.00020596,2]
[425565174,1781813440000,-500.0,0.00020596,2]
[425565176,1781813440000,-500.0,0.00020596,2]
[425565178,1781813440000,-500.0,0.00020596,2]
[425565180,1781813440000,-500.0,0.00020596,2]
[425565188,1781813440000,-500.0,0.00020596,2]
[425565169,1781813440000,-500.0,0.00020596,2]
[425565189,1781813440000,-500.0,0.00020596,2]
[425565160,1781813440000,-393.56491484,0.00020596,2]
[425565163,1781813440000,-500.0,0.00020596,2]
[425565161,1781813440000,-500.0,0.00020596,2]
[425565157,1781813440000,-500.0,0.00020596,2]
[425565158,1781813440000,-500.0,0.00020596,2]
[425565149,1781813440000,-500.0,0.00020596,2]
[425565146,1781813440000,-445.0,0.00020178,2]
[425565147,1781813440000,-726.551702,0.00020224,2]
[425565144,1781813440000,-152.0,0.00015805,7]
[425565143,1781813440000,-1659.64737007,0.00012,2]
[425565145,1781813440000,-186.0,0.00020178,2]
[425565148,1781813440000,-2883.19560109,0.00020498,2]
[425565142,1781813440000,-300.57049308,0.0001,2]
[425565141,1781813440000,-2468.41455338,0.0001,2]
[425565140,1781813440000,-294.69058029,0.0001,2]
[425565151,1781813440000,-500.0,0.00020596,2]
[425565184,1781813440000,-500.0,0.00020596,2]
[425565217,1781813440000,-500.0,0.00020596,2]
[425565182,1781813440000,-500.0,0.00020596,2]
[425565249,1781813440000,-500.0,0.00020596,2]
[425565251,1781813440000,-500.0,0.00020596,2]
[425565247,1781813440000,-500.0,0.00020596,2]
[425565245,1781813440000,-500.0,0.00020596,2]
[425565243,1781813440000,-500.0,0.00020596,2]
[425565239,1781813440000,-500.0,0.00020596,2]
[425565241,1781813440000,-271.87802191,0.00020596,2]
[425565231,1781813440000,-500.0,0.00020596,2]
[425565233,1781813440000,-500.0,0.00020596,2]
[425565235,1781813440000,-500.0,0.00020596,2]
[425565229,1781813440000,-500.0,0.00020596,2]
[425565191,1781813440000,-500.0,0.00020596,2]
[425565227,1781813440000,-500.0,0.00020596,2]
[425565225,1781813440000,-500.0,0.00020596,2]
[425565223,1781813440000,-500.0,0.00020596,2]
[425565237,1781813440000,-500.0,0.00020596,2]
[425565221,1781813440000,-500.0,0.00020596,2]
[425565186,1781813440000,-500.0,0.00020596,2]
[425565193,1781813440000,-500.0,0.00020596,2]
[425565219,1781813440000,-500.0,0.00020596,2]
[425565208,1781813440000,-500.0,0.00020596,2]
[425565206,1781813440000,-500.0,0.00020596,2]
[425565209,1781813440000,-500.0,0.00020596,2]
[425565211,1781813440000,-500.0,0.00020596,2]
[425565204,1781813440000,-500.0,0.00020596,2]
[425565198,1781813440000,-500.0,0.00020596,2]
[425565202,1781813440000,-500.0,0.00020596,2]
[425565195,1781813440000,-500.0,0.00020596,2]
[425565197,1781813440000,-500.0,0.00020596,2]
[425565200,1781813440000,-500.0,0.00020596,2]
[425565215,1781813440000,-500.0,0.00020596,2]
[425565213,1781813440000,-500.0,0.00020596,2]
[425565253,1781813441000,-311.35284893,0.00020596,2]
[425565264,1781813441000,-500.0,0.00020596,2]
[425565258,1781813441000,-500.0,0.00020596,2]
[425565256,1781813441000,-500.0,0.00020596,2]
[425565254,1781813441000,-500.0,0.00020596,2]
[425565262,1781813441000,-500.0,0.00020596,2]
[425565260,1781813441000,-500.0,0.00020596,2]
[425565266,1781813441000,-500.0,0.00020598,2]
[425565268,1781813441000,-287.55884732,0.00020598,2]
[425565281,1781813441000,-386.78538623,0.00020598,2]
[425565272,1781813441000,-500.0,0.00020598,2]
[425565273,1781813441000,-500.0,0.00020598,2]
[425565275,1781813441000,-500.0,0.00020598,2]
[425565288,1781813441000,-524.5156047,0.00020599,2]
[425565279,1781813441000,-500.0,0.00020598,2]
[425565277,1781813441000,-500.0,0.00020598,2]
[425565286,1781813441000,-304.0,0.00020599,2]
[425565283,1781813441000,-45059.07677143,0.00020599,2]
[425565291,1781813441000,-311.991456,0.00020599,2]
[425565270,1781813441000,-500.0,0.00020598,2]
[425565568,1781813443000,-12095.90872,0.00020599,2]
[425565571,1781813443000,-1028.85686,0.00020599,2]
[425565561,1781813443000,-385.02846031,0.00020599,2]
[425565827,1781813446000,-11847.57843492,0.00020599,2]
[425566661,1781813544000,157.14397623,0.00023106,120]
[425566662,1781813545000,157.14397623,0.00023106,120]
[425566689,1781814282000,14788.92,0.00024658,120]
[425566699,1781814521000,160.0,0.000246,120]
[425566714,1781814632000,-250.0,0.00013233,14]
[425566713,1781814632000,-818.24179826,0.00013101,2]
[425566728,1781814640000,-231.322208,0.00016075,2]
[425566722,1781814640000,-200.0,0.00015305,2]
[425566723,1781814640000,-152.0,0.00015503,7]
[425566724,1781814640000,-250.0,0.00015579,2]
[425566725,1781814640000,-267.7103083,0.00015648,2]
[425566726,1781814640000,-3400.74148471,0.0001605,2]
[425566727,1781814640000,-2016.98104389,0.0001605,2]
[425566721,1781814640000,-187.66191462,0.00013233,14]
[425566730,1781814640000,-300.0,0.00017277,2]
[425566733,1781814640000,-500.0,0.00017377,2]
[425566734,1781814640000,-500.0,0.00017377,2]
[425566731,1781814640000,-2749.68238525,0.00017278,2]
[425566732,1781814640000,-3451.58409733,0.0001728,2]
[425566735,1781814640000,-500.0,0.00017377,2]
[425566736,1781814640000,-500.0,0.00017377,2]
[425566737,1781814640000,-500.0,0.00017377,2]
[425566729,1781814640000,-252.73837912,0.00016146,2]
[425566784,1781814641000,-500.0,0.00017377,2]
[425566778,1781814641000,-500.0,0.00017377,2]
[425566779,1781814641000,-500.0,0.00017377,2]
[425566774,1781814641000,-500.0,0.00017377,2]
[425566775,1781814641000,-500.0,0.00017377,2]
[425566771,1781814641000,-500.0,0.00017377,2]
[425566772,1781814641000,-500.0,0.00017377,2]
[425566769,1781814641000,-500.0,0.00017377,2]
[425566785,1781814641000,-500.0,0.00017377,2]
[425566773,1781814641000,-500.0,0.00017377,2]
[425566777,1781814641000,-500.0,0.00017377,2]
[425566767,1781814641000,-500.0,0.00017377,2]
[425566780,1781814641000,-500.0,0.00017377,2]
[425566788,1781814641000,-500.0,0.00017377,2]
[425566786,1781814641000,-500.0,0.00017377,2]
[425566787,1781814641000,-500.0,0.00017377,2]
[425566783,1781814641000,-500.0,0.00017377,2]
[425566789,1781814641000,-500.0,0.00017377,2]
[425566790,1781814641000,-500.0,0.00017377,2]
[425566791,1781814641000,-500.0,0.00017377,2]
[425566798,1781814641000,-500.0,0.00017378,2]
[425566796,1781814641000,-500.0,0.00017378,2]
[425566794,1781814641000,-500.0,0.00017378,2]
[425566795,1781814641000,-500.0,0.00017378,2]
[425566799,1781814641000,-500.0,0.00017378,2]
[425566800,1781814641000,-500.0,0.00017378,2]
[425566776,1781814641000,-500.0,0.00017377,2]
[425566782,1781814641000,-500.0,0.00017377,2]
[425566770,1781814641000,-500.0,0.00017377,2]
[425566746,1781814641000,-500.0,0.00017377,2]
[425566766,1781814641000,-500.0,0.00017377,2]
[425566738,1781814641000,-500.0,0.00017377,2]
[425566739,1781814641000,-500.0,0.00017377,2]
[425566741,1781814641000,-500.0,0.00017377,2]
[425566740,1781814641000,-326.88559731,0.00017377,2]
[425566751,1781814641000,-500.0,0.00017377,2]
[425566742,1781814641000,-500.0,0.00017377,2]
[425566752,1781814641000,-500.0,0.00017377,2]
[425566743,1781814641000,-484.47348622,0.00017377,2]
[425566744,1781814641000,-500.0,0.00017377,2]
[425566747,1781814641000,-500.0,0.00017377,2]
[425566749,1781814641000,-500.0,0.00017377,2]
[425566793,1781814641000,-500.0,0.00017378,2]
[425566748,1781814641000,-500.0,0.00017377,2]
[425566768,1781814641000,-500.0,0.00017377,2]
[425566745,1781814641000,-500.0,0.00017377,2]
[425566754,1781814641000,-500.0,0.00017377,2]
[425566753,1781814641000,-500.0,0.00017377,2]
[425566755,1781814641000,-500.0,0.00017377,2]
[425566756,1781814641000,-523.81561998,0.00017377,2]
[425566758,1781814641000,-500.0,0.00017377,2]
[425566757,1781814641000,-500.0,0.00017377,2]
[425566759,1781814641000,-500.0,0.00017377,2]
[425566760,1781814641000,-500.0,0.00017377,2]
[425566763,1781814641000,-500.0,0.00017377,2]
[425566761,1781814641000,-500.0,0.00017377,2]
[425566762,1781814641000,-628.41070759,0.00017377,2]
[425566764,1781814641000,-500.0,0.00017377,2]
[425566765,1781814641000,-500.0,0.00017377,2]
[425566750,1781814641000,-500.0,0.00017377,2]
[425566792,1781814641000,-500.0,0.00017378,2]
[425566781,1781814641000,-500.0,0.00017377,2]
[425566801,1781814641000,-500.0,0.00017378,2]
[425566834,1781814641000,-500.0,0.00017382,2]
[425566837,1781814641000,-500.0,0.00017382,2]
[425566831,1781814641000,-500.0,0.00017382,2]
[425566836,1781814641000,-500.0,0.00017382,2]
[425566835,1781814641000,-500.0,0.00017382,2]